[Event "*** SCC Grand Prix: Titled Tuesday Blitz"]
[Site "Chess.com"]
[Date "2020.07.14"]
[Round "7"]
[White "WeAintSurePal"]
[Black "Schandenfreude"]
[Result "0-1"]
[WhiteElo "2276"]
[BlackElo "2455"]
[TimeControl "180+1"]
[EndTime "11:17:46 PDT"]
[Termination "Schandenfreude won by resignation"]

1. d4 {[%clk 0:03:00.9]} 1... d5 {[%clk 0:02:59.3]} 2. Bf4 {[%clk 0:02:56]} 2...
Nf6 {[%clk 0:02:56.8]} 3. e3 {[%clk 0:02:52.1]} 3... c5 {[%clk 0:02:55.3]} 4.
Nc3 {[%clk 0:02:43]} 4... cxd4 {[%clk 0:02:35.4]} 5. exd4 {[%clk 0:02:42.7]}
5... a6 {[%clk 0:02:32.7]} 6. Nf3 {[%clk 0:02:40.2]} 6... Nc6 {[%clk 0:02:32.3]}
7. Be2 {[%clk 0:02:36.4]} 7... Bg4 {[%clk 0:02:31.8]} 8. h3 {[%clk 0:02:33.5]}
8... Bxf3 {[%clk 0:02:31.4]} 9. Bxf3 {[%clk 0:02:27.9]} 9... e6 {[%clk
0:02:32.3]} 10. Be3 {[%clk 0:02:21.1]} 10... Rc8 {[%clk 0:02:29.6]} 11. O-O
{[%clk 0:02:14.2]} 11... Bd6 {[%clk 0:02:29.1]} 12. Ne2 {[%clk 0:02:13.3]} 12...
O-O {[%clk 0:02:28]} 13. Bg5 {[%clk 0:02:05.8]} 13... h6 {[%clk 0:02:26.8]} 14.
Bh4 {[%clk 0:01:59.4]} 14... b5 {[%clk 0:02:25.1]} 15. a3 {[%clk 0:01:57.9]}
15... Na5 {[%clk 0:02:20.3]} 16. c3 {[%clk 0:01:46.8]} 16... Nc4 {[%clk
0:02:19.6]} 17. Rb1 {[%clk 0:01:46.8]} 17... Re8 {[%clk 0:02:14.3]} 18. Qd3
{[%clk 0:01:46.1]} 18... Be7 {[%clk 0:02:09.3]} 19. Rfe1 {[%clk 0:01:40]} 19...
Nd6 {[%clk 0:02:09.2]} 20. Bxf6 {[%clk 0:01:35.6]} 20... Bxf6 {[%clk 0:02:08.9]}
21. Ng3 {[%clk 0:01:36.5]} 21... g6 {[%clk 0:01:59.9]} 22. a4 {[%clk 0:01:32.5]}
22... Qb6 {[%clk 0:01:54.4]} 23. axb5 {[%clk 0:01:24.7]} 23... axb5 {[%clk
0:01:54.3]} 24. Qe3 {[%clk 0:01:24.6]} 24... Kg7 {[%clk 0:01:47.7]} 25. Ne2
{[%clk 0:01:18.1]} 25... b4 {[%clk 0:01:41.7]} 26. Nf4 {[%clk 0:00:59.4]} 26...
Qc7 {[%clk 0:01:27.9]} 27. Rec1 {[%clk 0:00:54.3]} 27... Nc4 {[%clk 0:01:22.6]}
0-1

[Event "*** SCC Grand Prix: Titled Tuesday Blitz"]
[Site "Chess.com"]
[Date "2020.07.14"]
[Round "7"]
[White "Djager97"]
[Black "Shubinkirill2003"]
[Result "0-1"]
[WhiteElo "2456"]
[BlackElo "2650"]
[TimeControl "180+1"]
[EndTime "11:17:48 PDT"]
[Termination "Shubinkirill2003 won by checkmate"]

1. e4 {[%clk 0:03:00.9]} 1... e6 {[%clk 0:03:00]} 2. d4 {[%clk 0:03:01.4]} 2...
d5 {[%clk 0:02:59]} 3. Nc3 {[%clk 0:03:02.3]} 3... Bb4 {[%clk 0:02:58.2]} 4. e5
{[%clk 0:03:02.6]} 4... b6 {[%clk 0:02:58]} 5. Bd2 {[%clk 0:03:00.9]} 5... Ne7
{[%clk 0:02:56.5]} 6. Nf3 {[%clk 0:03:00.6]} 6... Ba6 {[%clk 0:02:54.7]} 7. Bxa6
{[%clk 0:03:01.2]} 7... Nxa6 {[%clk 0:02:55.6]} 8. Ne2 {[%clk 0:03:02.1]} 8...
Bxd2+ {[%clk 0:02:55]} 9. Qxd2 {[%clk 0:03:03]} 9... c5 {[%clk 0:02:53.1]} 10.
c3 {[%clk 0:03:03]} 10... Qd7 {[%clk 0:02:49.5]} 11. h4 {[%clk 0:03:03.4]} 11...
h6 {[%clk 0:02:48.2]} 12. h5 {[%clk 0:03:03.5]} 12... Nb8 {[%clk 0:02:42.5]} 13.
g4 {[%clk 0:03:03.5]} 13... Nbc6 {[%clk 0:02:42.2]} 14. O-O-O {[%clk 0:03:02.2]}
14... O-O-O {[%clk 0:02:40.6]} 15. Kb1 {[%clk 0:03:01.8]} 15... Kb8 {[%clk
0:02:37.5]} 16. Nh4 {[%clk 0:03:01.6]} 16... cxd4 {[%clk 0:02:34.3]} 17. cxd4
{[%clk 0:03:00.6]} 17... Rc8 {[%clk 0:02:34.2]} 18. f4 {[%clk 0:02:57.1]} 18...
Na5 {[%clk 0:02:33.8]} 19. b3 {[%clk 0:02:57.6]} 19... Qb5 {[%clk 0:02:20.9]}
20. Nc3 {[%clk 0:02:43]} 20... Qb4 {[%clk 0:02:15.2]} 21. Ne4 {[%clk 0:02:35.8]}
21... Qxd2 {[%clk 0:02:08.6]} 22. Nxd2 {[%clk 0:02:35.6]} 22... Nec6 {[%clk
0:02:09.1]} 23. Nhf3 {[%clk 0:02:33.4]} 23... Nb4 {[%clk 0:02:07.7]} 24. f5
{[%clk 0:01:49.7]} 24... Nd3 {[%clk 0:01:51.4]} 25. Rdf1 {[%clk 0:01:41.7]}
25... Rc3 {[%clk 0:01:45.3]} 26. fxe6 {[%clk 0:00:39.1]} 26... fxe6 {[%clk
0:01:43.6]} 27. g5 {[%clk 0:00:35.5]} 27... Rhc8 {[%clk 0:01:41.3]} 28. gxh6
{[%clk 0:00:35.3]} 28... gxh6 {[%clk 0:01:41.5]} 29. Ne1 {[%clk 0:00:25.6]}
29... Rc1# {[%clk 0:01:40.4]} 0-1

[Event "*** SCC Grand Prix: Titled Tuesday Blitz"]
[Site "Chess.com"]
[Date "2020.07.14"]
[Round "7"]
[White "diamonds13"]
[Black "ikhasu"]
[Result "0-1"]
[WhiteElo "2233"]
[BlackElo "2412"]
[TimeControl "180+1"]
[EndTime "11:17:53 PDT"]
[Termination "ikhasu won by resignation"]

1. d4 {[%clk 0:03:00.9]} 1... Nf6 {[%clk 0:02:58.9]} 2. c4 {[%clk 0:03:01.2]}
2... c5 {[%clk 0:02:58.8]} 3. d5 {[%clk 0:03:00.7]} 3... b5 {[%clk 0:02:58.6]}
4. cxb5 {[%clk 0:03:00.1]} 4... a6 {[%clk 0:02:58.7]} 5. bxa6 {[%clk 0:03:00.1]}
5... g6 {[%clk 0:02:57.7]} 6. Nc3 {[%clk 0:03:00.6]} 6... Bxa6 {[%clk
0:02:57.5]} 7. e4 {[%clk 0:03:01.2]} 7... d6 {[%clk 0:02:56.4]} 8. Nf3 {[%clk
0:03:00.8]} 8... Bxf1 {[%clk 0:02:55.1]} 9. Kxf1 {[%clk 0:03:00.3]} 9... Bg7
{[%clk 0:02:55.3]} 10. g3 {[%clk 0:03:00.9]} 10... O-O {[%clk 0:02:55.3]} 11.
Kg2 {[%clk 0:03:01.5]} 11... Qb6 {[%clk 0:02:55.2]} 12. h3 {[%clk 0:03:01.3]}
12... Na6 {[%clk 0:02:50.4]} 13. Qe2 {[%clk 0:02:59.5]} 13... Nd7 {[%clk
0:02:47.2]} 14. Bg5 {[%clk 0:02:57.6]} 14... Rfe8 {[%clk 0:02:46]} 15. Rhd1
{[%clk 0:02:53.4]} 15... Rab8 {[%clk 0:02:31.6]} 16. Na4 {[%clk 0:02:40.1]}
16... Qa5 {[%clk 0:02:23]} 17. b3 {[%clk 0:02:27.3]} 17... Bxa1 {[%clk
0:02:20.5]} 18. Rxa1 {[%clk 0:02:27.1]} 18... Qb5 {[%clk 0:02:17.3]} 19. Qd2
{[%clk 0:02:23.5]} 19... Nb4 {[%clk 0:02:15.5]} 20. Bh6 {[%clk 0:02:11.7]} 20...
Qd3 {[%clk 0:02:10]} 21. Qf4 {[%clk 0:02:09.8]} 21... Nf6 {[%clk 0:01:58.2]} 22.
Ng5 {[%clk 0:02:05.1]} 22... Qd4 {[%clk 0:01:50.4]} 23. Re1 {[%clk 0:01:55.1]}
23... Nd3 {[%clk 0:01:49.1]} 24. Qe3 {[%clk 0:01:25.9]} 24... Nxe1+ {[%clk
0:01:46.3]} 25. Qxe1 {[%clk 0:01:25.8]} 25... c4 {[%clk 0:01:42.4]} 26. Nf3
{[%clk 0:01:25.2]} 26... Qxe4 {[%clk 0:01:41.6]} 27. Qa1 {[%clk 0:01:20.8]}
27... cxb3 {[%clk 0:01:36.3]} 28. g4 {[%clk 0:01:19.5]} 28... bxa2 {[%clk
0:01:16]} 29. Nc3 {[%clk 0:01:17.7]} 29... Qb1 {[%clk 0:01:02.6]} 30. Nxb1
{[%clk 0:01:13.5]} 30... axb1=Q {[%clk 0:01:01.5]} 31. Qd4 {[%clk 0:01:13.8]}
31... Qe4 {[%clk 0:01:00.3]} 32. Qa1 {[%clk 0:01:11.8]} 32... Rb3 {[%clk
0:00:59.3]} 0-1

[Event "*** SCC Grand Prix: Titled Tuesday Blitz"]
[Site "Chess.com"]
[Date "2020.07.14"]
[Round "7"]
[White "Azoulas1"]
[Black "AlexSuv"]
[Result "1/2-1/2"]
[WhiteElo "2046"]
[BlackElo "2520"]
[TimeControl "180+1"]
[EndTime "11:17:54 PDT"]
[Termination "Game drawn by repetition"]

1. e4 {[%clk 0:03:00.9]} 1... c5 {[%clk 0:02:59.5]} 2. Nf3 {[%clk 0:03:00]} 2...
e6 {[%clk 0:02:59.7]} 3. d4 {[%clk 0:02:58.9]} 3... cxd4 {[%clk 0:03:00.6]} 4.
Nxd4 {[%clk 0:02:58]} 4... Nc6 {[%clk 0:03:01]} 5. Nc3 {[%clk 0:02:50.1]} 5...
Qc7 {[%clk 0:03:01.1]} 6. Be2 {[%clk 0:02:47.4]} 6... a6 {[%clk 0:03:01.3]} 7.
O-O {[%clk 0:02:46.6]} 7... Nf6 {[%clk 0:03:01.8]} 8. Be3 {[%clk 0:02:44.4]}
8... Bb4 {[%clk 0:03:01.3]} 9. Na4 {[%clk 0:02:43.2]} 9... Be7 {[%clk
0:03:00.8]} 10. Bf3 {[%clk 0:02:28.8]} 10... Ne5 {[%clk 0:02:52.9]} 11. b3
{[%clk 0:02:22.1]} 11... b5 {[%clk 0:02:49]} 12. Nb2 {[%clk 0:02:18.5]} 12...
Bb7 {[%clk 0:02:48.3]} 13. Bf4 {[%clk 0:02:10.2]} 13... d6 {[%clk 0:02:32]} 14.
Re1 {[%clk 0:02:00.8]} 14... Nxf3+ {[%clk 0:02:28.9]} 15. Qxf3 {[%clk
0:01:58.1]} 15... e5 {[%clk 0:02:22.5]} 16. Nf5 {[%clk 0:01:53.9]} 16... exf4
{[%clk 0:02:22.8]} 17. Nxg7+ {[%clk 0:01:53.4]} 17... Kf8 {[%clk 0:02:23.2]} 18.
Nf5 {[%clk 0:01:52.5]} 18... Qxc2 {[%clk 0:02:18]} 19. Nd3 {[%clk 0:01:46.4]}
19... Rc8 {[%clk 0:02:06.3]} 20. Rac1 {[%clk 0:01:38.4]} 20... Qd2 {[%clk
0:01:53.3]} 21. Rxc8+ {[%clk 0:01:21.8]} 21... Bxc8 {[%clk 0:01:54.2]} 22. Rd1
{[%clk 0:01:21]} 22... Qxa2 {[%clk 0:01:49.6]} 23. Qxf4 {[%clk 0:01:19.2]} 23...
Qxb3 {[%clk 0:01:46.6]} 24. Re1 {[%clk 0:00:46.5]} 24... Bxf5 {[%clk 0:01:43.5]}
25. exf5 {[%clk 0:00:35.4]} 25... Qxd3 {[%clk 0:01:43.3]} 26. Qh6+ {[%clk
0:00:35.2]} 26... Kg8 {[%clk 0:01:24.2]} 27. Qg5+ {[%clk 0:00:34]} 27... Kf8
{[%clk 0:01:24.4]} 28. Qh6+ {[%clk 0:00:33.6]} 28... Kg8 {[%clk 0:01:24.6]} 29.
Qg5+ {[%clk 0:00:32.7]} 29... Kf8 {[%clk 0:01:25]} 30. Qh6+ {[%clk 0:00:32.2]}
1/2-1/2

[Event "*** SCC Grand Prix: Titled Tuesday Blitz"]
[Site "Chess.com"]
[Date "2020.07.14"]
[Round "7"]
[White "novocane"]
[Black "1f3_2g41-0"]
[Result "0-1"]
[WhiteElo "2257"]
[BlackElo "2404"]
[TimeControl "180+1"]
[EndTime "11:17:54 PDT"]
[Termination "1f3_2g41-0 won by checkmate"]

1. d4 {[%clk 0:03:00.8]} 1... Nf6 {[%clk 0:02:57.4]} 2. c4 {[%clk 0:02:59.7]}
2... g6 {[%clk 0:02:57.7]} 3. Nc3 {[%clk 0:02:59.3]} 3... d5 {[%clk 0:02:57.4]}
4. cxd5 {[%clk 0:02:59.3]} 4... Nxd5 {[%clk 0:02:58.3]} 5. e4 {[%clk 0:02:58.8]}
5... Nxc3 {[%clk 0:02:58.4]} 6. bxc3 {[%clk 0:02:59.7]} 6... Bg7 {[%clk
0:02:58.8]} 7. Qa4+ {[%clk 0:02:59.6]} 7... Bd7 {[%clk 0:02:57.7]} 8. Qa3 {[%clk
0:02:58.9]} 8... O-O {[%clk 0:02:57.7]} 9. Nf3 {[%clk 0:02:59]} 9... b6 {[%clk
0:02:57.5]} 10. Bg5 {[%clk 0:02:36.7]} 10... c5 {[%clk 0:02:56.9]} 11. Bd3
{[%clk 0:02:24.1]} 11... Nc6 {[%clk 0:02:31.7]} 12. d5 {[%clk 0:02:10.8]} 12...
Nb4 {[%clk 0:02:24.4]} 13. Rd1 {[%clk 0:01:45.1]} 13... Nxd3+ {[%clk 0:02:23]}
14. Rxd3 {[%clk 0:01:43.6]} 14... Bb5 {[%clk 0:02:23.5]} 15. Rd2 {[%clk
0:01:26.6]} 15... h6 {[%clk 0:02:21.9]} 16. Bh4 {[%clk 0:01:09.7]} 16... Qd7
{[%clk 0:02:20.3]} 17. Kd1 {[%clk 0:00:52.9]} 17... Qg4 {[%clk 0:02:18]} 18. Bg3
{[%clk 0:00:32.9]} 18... Qxe4 {[%clk 0:02:16.4]} 19. Re1 {[%clk 0:00:32.6]}
19... Qb1+ {[%clk 0:02:15.5]} 20. Qc1 {[%clk 0:00:33]} 20... Qf5 {[%clk
0:01:53.7]} 21. Rxe7 {[%clk 0:00:29.8]} 21... Rfe8 {[%clk 0:01:52]} 22. d6
{[%clk 0:00:23.3]} 22... Bf6 {[%clk 0:01:45.7]} 23. Rxe8+ {[%clk 0:00:15.9]}
23... Rxe8 {[%clk 0:01:46.6]} 24. Qc2 {[%clk 0:00:07.1]} 24... Ba4 {[%clk
0:01:45]} 25. Qxa4 {[%clk 0:00:06.2]} 25... Qb1# {[%clk 0:01:45]} 0-1

[Event "*** SCC Grand Prix: Titled Tuesday Blitz"]
[Site "Chess.com"]
[Date "2020.07.14"]
[Round "7"]
[White "vladislavkovalev"]
[Black "antoszu"]
[Result "1-0"]
[WhiteElo "2900"]
[BlackElo "2540"]
[TimeControl "180+1"]
[EndTime "11:17:57 PDT"]
[Termination "vladislavkovalev won by resignation"]

1. e4 {[%clk 0:03:00.9]} 1... e6 {[%clk 0:02:59.8]} 2. d4 {[%clk 0:03:00.8]}
2... d5 {[%clk 0:03:00.4]} 3. Bd3 {[%clk 0:03:01.5]} 3... dxe4 {[%clk
0:02:58.4]} 4. Bxe4 {[%clk 0:03:02.4]} 4... Nf6 {[%clk 0:02:58.8]} 5. Bf3 {[%clk
0:03:03]} 5... c5 {[%clk 0:02:59.4]} 6. Ne2 {[%clk 0:03:03.6]} 6... Nc6 {[%clk
0:03:00]} 7. Be3 {[%clk 0:03:03.7]} 7... e5 {[%clk 0:02:58]} 8. Bxc6+ {[%clk
0:03:01.4]} 8... bxc6 {[%clk 0:02:58.9]} 9. dxe5 {[%clk 0:03:02]} 9... Qxd1+
{[%clk 0:02:59.3]} 10. Kxd1 {[%clk 0:03:02.7]} 10... Ng4 {[%clk 0:02:59.8]} 11.
h3 {[%clk 0:03:03.4]} 11... Nxe5 {[%clk 0:02:59.4]} 12. Re1 {[%clk 0:03:03.1]}
12... Be7 {[%clk 0:02:48.1]} 13. Nd2 {[%clk 0:02:36.9]} 13... O-O {[%clk
0:02:32.7]} 14. Ne4 {[%clk 0:02:12.3]} 14... Bf5 {[%clk 0:02:00.1]} 15. N2g3
{[%clk 0:02:11.8]} 15... Bxe4 {[%clk 0:01:26.4]} 16. Nxe4 {[%clk 0:02:12.7]}
16... c4 {[%clk 0:01:27.3]} 17. Ke2 {[%clk 0:02:07.2]} 17... Rfe8 {[%clk
0:01:21.9]} 18. Rad1 {[%clk 0:02:05.8]} 18... Bb4 {[%clk 0:01:18.9]} 19. Bd2
{[%clk 0:01:59.4]} 19... c3 {[%clk 0:00:54.8]} 20. bxc3 {[%clk 0:01:46.9]} 20...
Bf8 {[%clk 0:00:49.3]} 21. Kf1 {[%clk 0:01:46.9]} 21... Nc4 {[%clk 0:00:49.5]}
22. Bc1 {[%clk 0:01:47.1]} 22... Rad8 {[%clk 0:00:31.4]} 23. Rd4 {[%clk
0:01:42.3]} 23... Nb6 {[%clk 0:00:25.3]} 24. Bg5 {[%clk 0:01:40.6]} 24... f6
{[%clk 0:00:14.8]} 25. Bxf6 {[%clk 0:01:35.2]} 25... gxf6 {[%clk 0:00:15.4]} 26.
Nxf6+ {[%clk 0:01:35.3]} 26... Kf7 {[%clk 0:00:15.6]} 27. Nxe8 {[%clk
0:01:35.9]} 27... Rxe8 {[%clk 0:00:16.5]} 28. Rf4+ {[%clk 0:01:36.4]} 1-0

[Event "*** SCC Grand Prix: Titled Tuesday Blitz"]
[Site "Chess.com"]
[Date "2020.07.14"]
[Round "7"]
[White "vanImpe"]
[Black "bgfbfbgfbgfgf"]
[Result "0-1"]
[WhiteElo "2514"]
[BlackElo "2670"]
[TimeControl "180+1"]
[EndTime "11:18:02 PDT"]
[Termination "bgfbfbgfbgfgf won by checkmate"]

1. g3 {[%clk 0:03:00.9]} 1... Nf6 {[%clk 0:02:59.7]} 2. Bg2 {[%clk 0:03:01.2]}
2... d5 {[%clk 0:03:00]} 3. c4 {[%clk 0:03:01]} 3... c6 {[%clk 0:02:57.4]} 4.
Nf3 {[%clk 0:03:01]} 4... Bg4 {[%clk 0:02:53]} 5. Ne5 {[%clk 0:03:00.9]} 5...
Bf5 {[%clk 0:02:52.7]} 6. cxd5 {[%clk 0:03:01.2]} 6... cxd5 {[%clk 0:02:53.6]}
7. Nc3 {[%clk 0:03:01.7]} 7... e6 {[%clk 0:02:51.4]} 8. g4 {[%clk 0:03:01.7]}
8... Bg6 {[%clk 0:02:50.9]} 9. h4 {[%clk 0:03:01.1]} 9... Bd6 {[%clk 0:02:34.5]}
10. d4 {[%clk 0:03:01]} 10... h5 {[%clk 0:01:43.1]} 11. g5 {[%clk 0:03:00.4]}
11... Bxe5 {[%clk 0:01:38.6]} 12. dxe5 {[%clk 0:02:54.2]} 12... Nfd7 {[%clk
0:01:36.2]} 13. e4 {[%clk 0:02:50.1]} 13... Nxe5 {[%clk 0:01:18.4]} 14. Bf4
{[%clk 0:02:40]} 14... Nbc6 {[%clk 0:01:15.5]} 15. Bxe5 {[%clk 0:02:28.6]} 15...
Nxe5 {[%clk 0:01:16.4]} 16. Qd4 {[%clk 0:02:27.1]} 16... Qc7 {[%clk 0:00:59.8]}
17. f4 {[%clk 0:02:08.5]} 17... Ng4 {[%clk 0:00:53.1]} 18. Qxg7 {[%clk
0:01:56.6]} 18... Qxf4 {[%clk 0:00:46.2]} 19. Qxh8+ {[%clk 0:01:52.6]} 19... Ke7
{[%clk 0:00:44]} 20. Qd4 {[%clk 0:01:39.4]} 20... Qg3+ {[%clk 0:00:43.6]} 21.
Kd1 {[%clk 0:01:27]} 21... Qxg2 {[%clk 0:00:32.4]} 22. Re1 {[%clk 0:01:25.5]}
22... Rc8 {[%clk 0:00:29]} 23. exd5 {[%clk 0:01:08.8]} 23... Qc2# {[%clk
0:00:27.8]} 0-1

[Event "*** SCC Grand Prix: Titled Tuesday Blitz"]
[Site "Chess.com"]
[Date "2020.07.14"]
[Round "7"]
[White "Rodalquilar"]
[Black "lucachess49"]
[Result "1-0"]
[WhiteElo "2644"]
[BlackElo "2437"]
[TimeControl "180+1"]
[EndTime "11:18:02 PDT"]
[Termination "Rodalquilar won by resignation"]

1. d4 {[%clk 0:03:00.9]} 1... Nf6 {[%clk 0:02:59.5]} 2. c4 {[%clk 0:03:00.9]}
2... e6 {[%clk 0:03:00.1]} 3. Nc3 {[%clk 0:03:01.3]} 3... Bb4 {[%clk 0:02:59.4]}
4. Qc2 {[%clk 0:03:01.7]} 4... O-O {[%clk 0:02:58.9]} 5. e4 {[%clk 0:03:01.5]}
5... d5 {[%clk 0:02:58.3]} 6. e5 {[%clk 0:03:01.6]} 6... Ne4 {[%clk 0:02:58.5]}
7. Bd3 {[%clk 0:03:00.6]} 7... c5 {[%clk 0:02:54.3]} 8. Nf3 {[%clk 0:03:00.9]}
8... cxd4 {[%clk 0:02:51.8]} 9. Nxd4 {[%clk 0:03:01.3]} 9... Nd7 {[%clk
0:02:52.4]} 10. Bf4 {[%clk 0:03:01.1]} 10... Ndc5 {[%clk 0:02:38.1]} 11. O-O
{[%clk 0:03:00.4]} 11... Nxd3 {[%clk 0:02:24.3]} 12. Qxd3 {[%clk 0:03:00.5]}
12... Nc5 {[%clk 0:02:24.3]} 13. Qg3 {[%clk 0:02:51.2]} 13... Bxc3 {[%clk
0:02:09.4]} 14. Bh6 {[%clk 0:02:43.6]} 14... g6 {[%clk 0:02:05.8]} 15. Qxc3
{[%clk 0:02:43.6]} 15... Ne4 {[%clk 0:01:49.5]} 16. Qe3 {[%clk 0:02:34.7]} 16...
Re8 {[%clk 0:01:46.2]} 17. f3 {[%clk 0:02:34.8]} 17... Nc5 {[%clk 0:01:42.7]}
18. Bg5 {[%clk 0:02:35]} 18... Qb6 {[%clk 0:01:07.1]} 19. b4 {[%clk 0:02:09]}
19... Nd7 {[%clk 0:00:20.3]} 20. c5 {[%clk 0:02:09.1]} 20... Qxb4 {[%clk
0:00:20]} 21. Rfc1 {[%clk 0:02:09]} 21... Qa5 {[%clk 0:00:14.7]} 22. Kh1 {[%clk
0:02:00.3]} 22... a6 {[%clk 0:00:12.9]} 23. Rab1 {[%clk 0:01:54.7]} 23... Qc7
{[%clk 0:00:12.9]} 24. c6 {[%clk 0:01:45.6]} 24... bxc6 {[%clk 0:00:12.9]} 25.
Nxc6 {[%clk 0:01:45.9]} 25... Nb6 {[%clk 0:00:04.8]} 26. Ne7+ {[%clk 0:01:42.4]}
26... Rxe7 {[%clk 0:00:04.3]} 27. Rxc7 {[%clk 0:01:42.3]} 1-0

[Event "*** SCC Grand Prix: Titled Tuesday Blitz"]
[Site "Chess.com"]
[Date "2020.07.14"]
[Round "7"]
[White "Biranidun"]
[Black "exoticprincess"]
[Result "1/2-1/2"]
[WhiteElo "2879"]
[BlackElo "2825"]
[TimeControl "180+1"]
[EndTime "11:18:03 PDT"]
[Termination "Game drawn by repetition"]

1. e4 {[%clk 0:03:00.9]} 1... c6 {[%clk 0:02:59.5]} 2. d4 {[%clk 0:03:00.7]}
2... d5 {[%clk 0:02:59.6]} 3. e5 {[%clk 0:03:01.3]} 3... Bf5 {[%clk 0:02:59.4]}
4. Nf3 {[%clk 0:03:01.2]} 4... e6 {[%clk 0:02:59.9]} 5. Be2 {[%clk 0:03:01.7]}
5... Ne7 {[%clk 0:03:00.1]} 6. O-O {[%clk 0:03:01.8]} 6... h6 {[%clk 0:03:00.8]}
7. c3 {[%clk 0:02:59.1]} 7... Nd7 {[%clk 0:03:01]} 8. Nbd2 {[%clk 0:02:58.6]}
8... Bh7 {[%clk 0:03:01.5]} 9. Nb3 {[%clk 0:02:57.2]} 9... Ng6 {[%clk
0:03:01.4]} 10. Be3 {[%clk 0:02:55.3]} 10... Be7 {[%clk 0:03:01.5]} 11. Ne1
{[%clk 0:02:55.4]} 11... O-O {[%clk 0:03:01.5]} 12. f4 {[%clk 0:02:55.6]} 12...
a5 {[%clk 0:02:59.8]} 13. a4 {[%clk 0:02:53.9]} 13... Qb6 {[%clk 0:02:59.7]} 14.
Nd3 {[%clk 0:02:53.5]} 14... Nh4 {[%clk 0:02:59.6]} 15. Bf2 {[%clk 0:02:21]}
15... Be4 {[%clk 0:02:57.2]} 16. Bxh4 {[%clk 0:01:31.9]} 16... Bxh4 {[%clk
0:02:58.1]} 17. Ndc5 {[%clk 0:01:32.2]} 17... Nxc5 {[%clk 0:02:57.8]} 18. Nxc5
{[%clk 0:01:33.1]} 18... Qxb2 {[%clk 0:02:53.3]} 19. Nxe4 {[%clk 0:00:39.7]}
19... dxe4 {[%clk 0:02:54.2]} 20. Rb1 {[%clk 0:00:40.2]} 20... Qa3 {[%clk
0:02:53.9]} 21. Qc2 {[%clk 0:00:32.2]} 21... Rab8 {[%clk 0:02:34.7]} 22. Ra1
{[%clk 0:00:31]} 22... Qe7 {[%clk 0:02:34.8]} 23. Qxe4 {[%clk 0:00:31.2]} 23...
Qd8 {[%clk 0:02:14]} 24. f5 {[%clk 0:00:27.4]} 24... exf5 {[%clk 0:02:14.9]} 25.
Rxf5 {[%clk 0:00:25.8]} 25... g6 {[%clk 0:02:12.2]} 26. Rf3 {[%clk 0:00:24.6]}
26... Kg7 {[%clk 0:02:11]} 27. Raf1 {[%clk 0:00:24.2]} 27... b5 {[%clk
0:02:07.7]} 28. Bd3 {[%clk 0:00:22.5]} 28... Kg8 {[%clk 0:01:56.4]} 29. Rxf7
{[%clk 0:00:14.3]} 29... Rxf7 {[%clk 0:01:56.2]} 30. Qxg6+ {[%clk 0:00:14.6]}
30... Rg7 {[%clk 0:01:55.4]} 31. Qe6+ {[%clk 0:00:14.9]} 31... Kh8 {[%clk
0:01:56]} 32. Qxh6+ {[%clk 0:00:15]} 32... Kg8 {[%clk 0:01:56.6]} 33. Qe6+
{[%clk 0:00:11.9]} 33... Kh8 {[%clk 0:01:56.6]} 34. Qh6+ {[%clk 0:00:06.6]}
34... Kg8 {[%clk 0:01:56.7]} 35. Qe6+ {[%clk 0:00:06.7]} 35... Kh8 {[%clk
0:01:57.1]} 36. Qh6+ {[%clk 0:00:06.8]} 1/2-1/2

[Event "*** SCC Grand Prix: Titled Tuesday Blitz"]
[Site "Chess.com"]
[Date "2020.07.14"]
[Round "7"]
[White "Benjoneliere44"]
[Black "GGfrances"]
[Result "0-1"]
[WhiteElo "2601"]
[BlackElo "2404"]
[TimeControl "180+1"]
[EndTime "11:18:19 PDT"]
[Termination "GGfrances won by resignation"]

1. d4 {[%clk 0:03:00.9]} 1... Nf6 {[%clk 0:02:59.5]} 2. Bf4 {[%clk 0:03:00.3]}
2... g6 {[%clk 0:02:58.2]} 3. Nc3 {[%clk 0:02:59.5]} 3... d5 {[%clk 0:02:56.7]}
4. Nb5 {[%clk 0:02:58.6]} 4... Na6 {[%clk 0:02:47.9]} 5. e3 {[%clk 0:02:58.7]}
5... Bg7 {[%clk 0:02:45.6]} 6. Nf3 {[%clk 0:02:57.3]} 6... O-O {[%clk
0:02:43.5]} 7. Be2 {[%clk 0:02:57.1]} 7... c6 {[%clk 0:02:30.2]} 8. Nc3 {[%clk
0:02:55.9]} 8... Nh5 {[%clk 0:02:27.6]} 9. Be5 {[%clk 0:02:50.8]} 9... f6 {[%clk
0:02:25.2]} 10. Bg3 {[%clk 0:02:49.8]} 10... Nxg3 {[%clk 0:02:22.3]} 11. hxg3
{[%clk 0:02:50.7]} 11... e5 {[%clk 0:02:18.6]} 12. e4 {[%clk 0:02:42.6]} 12...
dxe4 {[%clk 0:02:07.2]} 13. Nxe4 {[%clk 0:02:40.5]} 13... Nc7 {[%clk 0:02:01.8]}
14. dxe5 {[%clk 0:02:38.9]} 14... fxe5 {[%clk 0:01:59.3]} 15. Qxd8 {[%clk
0:02:24]} 15... Rxd8 {[%clk 0:02:00.2]} 16. Nfg5 {[%clk 0:02:24.3]} 16... h6
{[%clk 0:01:56.2]} 17. Nf3 {[%clk 0:02:22]} 17... b5 {[%clk 0:01:55.8]} 18. O-O
{[%clk 0:02:19.1]} 18... a5 {[%clk 0:01:50.5]} 19. a4 {[%clk 0:02:16.2]} 19...
Bf5 {[%clk 0:01:47.7]} 20. Nfd2 {[%clk 0:02:12.7]} 20... h5 {[%clk 0:01:45]} 21.
axb5 {[%clk 0:01:51.3]} 21... cxb5 {[%clk 0:01:42.5]} 22. c4 {[%clk 0:01:51.8]}
22... Bh6 {[%clk 0:01:39.2]} 23. Rfd1 {[%clk 0:01:47.8]} 23... Bxd2 {[%clk
0:01:33.2]} 24. Nxd2 {[%clk 0:01:46.7]} 24... Bc2 {[%clk 0:01:29.9]} 25. cxb5
{[%clk 0:01:46.8]} 25... Bxd1 {[%clk 0:01:26.9]} 26. Rxd1 {[%clk 0:01:47.7]}
26... Rab8 {[%clk 0:01:23.8]} 27. Kf1 {[%clk 0:01:27]} 27... Nxb5 {[%clk
0:01:20]} 28. Ke1 {[%clk 0:01:27.4]} 28... Kg7 {[%clk 0:01:16.6]} 29. Ra1 {[%clk
0:01:26.2]} 29... Nd4 {[%clk 0:01:13.9]} 30. Rxa5 {[%clk 0:01:17.5]} 30... Rxb2
{[%clk 0:01:07.9]} 31. Ra7+ {[%clk 0:01:18.1]} 31... Kh6 {[%clk 0:01:04.9]} 32.
Bd1 {[%clk 0:00:46.5]} 32... Rxd2 {[%clk 0:00:58.3]} 0-1